Workbook

Sheet Лист1
K1: Подсчет вручную
A2: 1 | D2: 80.7 | E2: 1.1379 | F2: 2023-01-01 | G2: 2023-01-01 | H2: 0 | I2: 31.63 | J2: 2325.88 | K2: =D2*I2/31*H2 -> 0 | L2: =NERASP(D2,F2,H2,I2) -> 0
A3: 2 | D3: 80.7 | E3: 1.1379 | F3: 2023-01-01 | G3: 2023-01-02 | H3: 1 | I3: 31.63 | J3: 2325.88 | K3: =D3*I3/31*H3-L3 -> 3.225806452e-05 | L3: =NERASP(D3,F3,H3,I3) -> 82.34
A4: 3 | D4: 80.7 | E4: 1.1379 | F4: 2023-01-01 | G4: 2023-01-03 | H4: 2 | I4: 31.63 | J4: 2325.88 | K4: =D4*I4/31*H4-L4 -> 6.451612904e-05 | L4: 164.68
A5: 4 | D5: 80.7 | E5: 1.1379 | F5: 2023-01-01 | G5: 2023-01-04 | H5: 3 | I5: 31.63 | J5: 2325.88 | K5: 9.677419357e-05 | L5: 247.02
A6: 5 | D6: 80.7 | E6: 1.1379 | F6: 2023-01-01 | G6: 2023-01-05 | H6: 4 | I6: 31.63 | J6: 2325.88 | K6: 0.0001290322581 | L6: 329.36
A7: 6 | D7: 80.7 | E7: 1.1379 | F7: 2023-01-01 | G7: 2023-01-06 | H7: 5 | I7: 31.63 | J7: 2325.88 | K7: 0.0001612903226 | L7: 411.7
A8: 7 | D8: 80.7 | E8: 1.1379 | F8: 2023-01-01 | G8: 2023-01-07 | H8: 6 | I8: 31.63 | J8: 2325.88 | K8: 0.0001935483871 | L8: 494.04
A9: 8 | D9: 80.7 | E9: 1.1379 | F9: 2023-01-01 | G9: 2023-01-08 | H9: 7 | I9: 31.63 | J9: 2325.88 | K9: 0.0002258064517 | L9: 576.38
A10: 9 | D10: 80.7 | E10: 1.1379 | F10: 2023-01-01 | G10: 2023-01-09 | H10: 8 | I10: 31.63 | J10: 2325.88 | K10: 0.0002580645162 | L10: 658.72
A11: 10 | D11: 80.7 | E11: 1.1379 | F11: 2023-01-01 | G11: 2023-01-10 | H11: 9 | I11: 31.63 | J11: 2325.88 | K11: 0.0002903225808 | L11: 741.06
A12: 11 | D12: 80.7 | E12: 1.1379 | F12: 2023-01-01 | G12: 2023-01-11 | H12: 10 | I12: 31.63 | J12: 2325.88 | K12: 0.0003225806453 | L12: 823.4
A13: 12 | D13: 80.7 | E13: 1.1379 | F13: 2023-01-01 | G13: 2023-01-12 | H13: 11 | I13: 31.63 | J13: 2325.88 | K13: 0.0003548387098 | L13: 905.74
A14: 13 | D14: 80.7 | E14: 1.1379 | F14: 2023-01-01 | G14: 2023-01-13 | H14: 12 | I14: 31.63 | J14: 2325.88 | K14: 0.0003870967743 | L14: 988.08
A15: 14 | D15: 80.7 | E15: 1.1379 | F15: 2023-01-01 | G15: 2023-01-14 | H15: 13 | I15: 31.63 | J15: 2325.88 | K15: 0.0004193548389 | L15: 1070.42
A16: 15 | D16: 80.7 | E16: 1.1379 | F16: 2023-01-01 | G16: 2023-01-15 | H16: 14 | I16: 31.63 | J16: 2325.88 | K16: 0.0004516129034 | L16: 1152.76
A17: 16 | D17: 80.7 | E17: 1.1379 | F17: 2023-01-01 | G17: 2023-01-16 | H17: 15 | I17: 31.63 | J17: 2325.88 | K17: 0.0004838709679 | L17: 1235.1
A18: 17 | D18: 80.7 | E18: 1.1379 | F18: 2023-01-01 | G18: 2023-01-17 | H18: 16 | I18: 31.63 | J18: 2325.88 | K18: 0.0005161290323 | L18: 1317.44
A19: 18 | D19: 80.7 | E19: 1.1379 | F19: 2023-01-01 | G19: 2023-01-18 | H19: 17 | I19: 31.63 | J19: 2325.88 | K19: 0.0005483870971 | L19: 1399.78
A20: 19 | D20: 80.7 | E20: 1.1379 | F20: 2023-01-01 | G20: 2023-01-19 | H20: 18 | I20: 31.63 | J20: 2325.88 | K20: 0.0005806451616 | L20: 1482.12
A21: 20 | D21: 80.7 | E21: 1.1379 | F21: 2023-01-01 | G21: 2023-01-20 | H21: 19 | I21: 31.63 | J21: 2325.88 | K21: 0.0006129032258 | L21: 1564.46
A22: 21 | D22: 80.7 | E22: 1.1379 | F22: 2023-01-01 | G22: 2023-01-21 | H22: 20 | I22: 31.63 | J22: 2325.88 | K22: 0.0006451612905 | L22: 1646.8
A23: 22 | D23: 80.7 | E23: 1.1379 | F23: 2023-01-01 | G23: 2023-01-22 | H23: 21 | I23: 31.63 | J23: 2325.88 | K23: 0.000677419355 | L23: 1729.14
A24: 23 | D24: 80.7 | E24: 1.1379 | F24: 2023-01-01 | G24: 2023-01-23 | H24: 22 | I24: 31.63 | J24: 2325.88 | K24: 0.0007096774195 | L24: 1811.48
A25: 24 | D25: 80.7 | E25: 1.1379 | F25: 2023-01-01 | G25: 2023-01-24 | H25: 23 | I25: 31.63 | J25: 2325.88 | K25: 0.000741935484 | L25: 1893.82
A26: 25 | D26: 80.7 | E26: 1.1379 | F26: 2023-01-01 | G26: 2023-01-25 | H26: 24 | I26: 31.63 | J26: 2325.88 | K26: 0.0007741935485 | L26: 1976.16
A27: 26 | D27: 80.7 | E27: 1.1379 | F27: 2023-01-01 | G27: 2023-01-26 | H27: 25 | I27: 31.63 | J27: 2325.88 | K27: 0.0008064516132 | L27: 2058.5
A28: 27 | D28: 80.7 | E28: 1.1379 | F28: 2023-01-01 | G28: 2023-01-27 | H28: 26 | I28: 31.63 | J28: 2325.88 | K28: 0.0008387096777 | L28: 2140.84
A29: 28 | D29: 80.7 | E29: 1.1379 | F29: 2023-01-01 | G29: 2023-01-28 | H29: 27 | I29: 31.63 | J29: 2325.88 | K29: 0.0008709677422 | L29: 2223.18
A30: 29 | D30: 80.7 | E30: 1.1379 | F30: 2023-01-01 | G30: 2023-01-29 | H30: 28 | I30: 31.63 | J30: 2325.88 | K30: 0.0009032258067 | L30: 2305.52
A31: 30 | D31: 80.7 | E31: 1.1379 | F31: 2023-01-01 | G31: 2023-01-30 | H31: 29 | I31: 31.63 | J31: 2325.88 | K31: 0.0009354838712 | L31: 2387.86
A32: 31 | D32: 80.7 | E32: 1.1379 | F32: 2023-01-01 | G32: 2023-01-31 | H32: 30 | I32: 31.63 | J32: 2325.88 | K32: 0.0009677419357 | L32: 2470.2
A33: 32 | D33: 80.7 | E33: 1.1379 | F33: 2023-01-01 | G33: 2023-02-01 | H33: 31 | I33: 31.63 | J33: 2325.88 | K33: 0.001 | L33: 2552.54
A34: 33 | D34: 80.7 | E34: 1.1379 | F34: 2023-01-01 | G34: 2023-02-02 | H34: 32 | I34: 31.63 | J34: 2325.88 | K34: =D34*I34+D34*I34/28*(H34-31)-L34 -> 0.003178571429 | L34: 2643.7
A35: 34 | D35: 80.7 | E35: 1.1379 | F35: 2023-01-01 | G35: 2023-02-03 | H35: 33 | I35: 31.63 | J35: 2325.88 | K35: =D35*I35+D35*I35/28*(H35-31)-L35 -> -0.004642857143 | L35: 2734.87
A36: 35 | D36: 80.7 | E36: 1.1379 | F36: 2023-01-01 | G36: 2023-02-04 | H36: 34 | I36: 31.63 | J36: 2325.88 | K36: -0.002464285714 | L36: 2826.03
A37: 36 | D37: 80.7 | E37: 1.1379 | F37: 2023-01-01 | G37: 2023-02-05 | H37: 35 | I37: 31.63 | J37: 2325.88 | K37: -0.0002857142854 | L37: 2917.19
A38: 37 | D38: 80.7 | E38: 1.1379 | F38: 2023-01-01 | G38: 2023-02-06 | H38: 36 | I38: 31.63 | J38: 2325.88 | K38: 0.001892857143 | L38: 3008.35
A39: 38 | D39: 80.7 | E39: 1.1379 | F39: 2023-01-01 | G39: 2023-02-07 | H39: 37 | I39: 31.63 | J39: 2325.88 | K39: 0.004071428571 | L39: 3099.51
A40: 39 | D40: 80.7 | E40: 1.1379 | F40: 2023-01-01 | G40: 2023-02-08 | H40: 38 | I40: 31.63 | J40: 2325.88 | K40: -0.003749999999 | L40: 3190.68
A41: 40 | D41: 80.7 | E41: 1.1379 | F41: 2023-01-01 | G41: 2023-02-09 | H41: 39 | I41: 31.63 | J41: 2325.88 | K41: -0.001571428571 | L41: 3281.84
A42: 41 | D42: 80.7 | E42: 1.1379 | F42: 2023-01-01 | G42: 2023-02-10 | H42: 40 | I42: 31.63 | J42: 2325.88 | K42: 0.0006071428575 | L42: 3373
A43: 42 | D43: 80.7 | E43: 1.1379 | F43: 2023-01-01 | G43: 2023-02-11 | H43: 41 | I43: 31.63 | J43: 2325.88 | K43: 0.002785714286 | L43: 3464.16
A44: 43 | D44: 80.7 | E44: 1.1379 | F44: 2023-01-01 | G44: 2023-02-12 | H44: 42 | I44: 31.63 | J44: 2325.88 | K44: =D44*I44+D44*I44/28*(H44-31)-L44 -> 0.004964285714 | L44: 3555.32
A45: 44 | D45: 80.7 | E45: 1.1379 | F45: 2023-01-01 | G45: 2023-02-13 | H45: 43 | I45: 31.63 | J45: 2325.88 | K45: -0.002857142857 | L45: 3646.49
A46: 45 | D46: 80.7 | E46: 1.1379 | F46: 2023-01-01 | G46: 2023-02-14 | H46: 44 | I46: 31.63 | J46: 2325.88 | K46: -0.0006785714281 | L46: 3737.65
A47: 46 | D47: 80.7 | E47: 1.1379 | F47: 2023-01-01 | G47: 2023-02-15 | H47: 45 | I47: 31.63 | J47: 2325.88 | K47: 0.0015 | L47: 3828.81
A48: 47 | D48: 80.7 | E48: 1.1379 | F48: 2023-01-01 | G48: 2023-02-16 | H48: 46 | I48: 31.63 | J48: 2325.88 | K48: 0.003678571429 | L48: 3919.97
A49: 48 | D49: 80.7 | E49: 1.1379 | F49: 2023-01-01 | G49: 2023-02-17 | H49: 47 | I49: 31.63 | J49: 2325.88 | K49: -0.004142857143 | L49: 4011.14
A50: 49 | D50: 80.7 | E50: 1.1379 | F50: 2023-01-01 | G50: 2023-02-18 | H50: 48 | I50: 31.63 | J50: 2325.88 | K50: -0.001964285714 | L50: 4102.3
A51: 50 | D51: 80.7 | E51: 1.1379 | F51: 2023-01-01 | G51: 2023-02-19 | H51: 49 | I51: 31.63 | J51: 2325.88 | K51: 0.0002142857147 | L51: 4193.46
A52: 51 | D52: 80.7 | E52: 1.1379 | F52: 2023-01-01 | G52: 2023-02-20 | H52: 50 | I52: 31.63 | J52: 2325.88 | K52: 0.002392857144 | L52: 4284.62
A53: 52 | D53: 80.7 | E53: 1.1379 | F53: 2023-01-01 | G53: 2023-02-21 | H53: 51 | I53: 31.63 | J53: 2325.88 | K53: 0.004571428572 | L53: 4375.78
A54: 53 | D54: 80.7 | E54: 1.1379 | F54: 2023-01-01 | G54: 2023-02-22 | H54: 52 | I54: 31.63 | J54: 2325.88 | K54: =D54*I54+D54*I54/28*(H54-31)-L54 -> -0.003249999999 | L54: 4466.95
A55: 54 | D55: 80.7 | E55: 1.1379 | F55: 2023-01-01 | G55: 2023-02-23 | H55: 53 | I55: 31.63 | J55: 2325.88 | K55: -0.001071428571 | L55: 4558.11
A56: 55 | D56: 80.7 | E56: 1.1379 | F56: 2023-01-01 | G56: 2023-02-24 | H56: 54 | I56: 31.63 | J56: 2325.88 | K56: 0.001107142857 | L56: 4649.27
A57: 56 | D57: 80.7 | E57: 1.1379 | F57: 2023-01-01 | G57: 2023-02-25 | H57: 55 | I57: 31.63 | J57: 2325.88 | K57: 0.003285714286 | L57: 4740.43
A58: 57 | D58: 80.7 | E58: 1.1379 | F58: 2023-01-01 | G58: 2023-02-26 | H58: 56 | I58: 31.63 | J58: 2325.88 | K58: -0.004535714286 | L58: 4831.6
A59: 58 | D59: 80.7 | E59: 1.1379 | F59: 2023-01-01 | G59: 2023-02-27 | H59: 57 | I59: 31.63 | J59: 2325.88 | K59: -0.002357142857 | L59: 4922.76
A60: 59 | D60: 80.7 | E60: 1.1379 | F60: 2023-01-01 | G60: 2023-02-28 | H60: 58 | I60: 31.63 | J60: 2325.88 | K60: -0.0001785714285 | L60: 5013.92
A61: 60 | D61: 80.7 | E61: 1.1379 | F61: 2023-01-01 | G61: 2023-03-01 | H61: 59 | I61: 31.63 | J61: 2325.88 | K61: =D61*I61*2+D61*I61/31*(H61-59)-L61 -> 0.002 | L61: 5105.08
A62: 61 | D62: 80.7 | E62: 1.1379 | F62: 2023-01-01 | G62: 2023-03-02 | H62: 60 | I62: 31.63 | J62: 2325.88 | K62: =D62*I62*2+D62*I62/31*(H62-59)-L62 -> -8.817967742 | L62: 5196.24
A63: 62 | D63: 80.7 | E63: 1.1379 | F63: 2023-01-01 | G63: 2023-03-03 | H63: 61 | I63: 31.63 | J63: 2325.88 | K63: =D63*I63*2+D63*I63/31*(H63-59)-L63 -> -17.64793548 | L63: 5287.41
A64: 63 | D64: 80.7 | E64: 1.1379 | F64: 2023-01-01 | G64: 2023-03-04 | H64: 62 | I64: 31.63 | J64: 2325.88 | K64: -26.46790323 | L64: 5378.57
A65: 64 | D65: 80.7 | E65: 1.1379 | F65: 2023-01-01 | G65: 2023-03-05 | H65: 63 | I65: 31.63 | J65: 2325.88 | K65: -35.28787097 | L65: 5469.73
A66: 65 | D66: 80.7 | E66: 1.1379 | F66: 2023-01-01 | G66: 2023-03-06 | H66: 64 | I66: 31.63 | J66: 2325.88 | K66: =D66*I66*2+D66*I66/31*(H66-59)-L66 -> -44.10783871 | L66: 5560.89
A67: 66 | D67: 80.7 | E67: 1.1379 | F67: 2023-01-01 | G67: 2023-03-07 | H67: 65 | I67: 31.63 | J67: 2325.88 | K67: -52.93780645 | L67: =NERASP(D67,F67,H67,I67) -> 5652.06
A68: 67 | D68: 80.7 | E68: 1.1379 | F68: 2023-01-01 | G68: 2023-03-08 | H68: 66 | I68: 31.63 | J68: 2325.88 | K68: -61.75777419 | L68: 5743.22
A69: 68 | D69: 80.7 | E69: 1.1379 | F69: 2023-01-01 | G69: 2023-03-09 | H69: 67 | I69: 31.63 | J69: 2325.88 | K69: -70.57774194 | L69: 5834.38
A70: 69 | D70: 80.7 | E70: 1.1379 | F70: 2023-01-01 | G70: 2023-03-10 | H70: 68 | I70: 31.63 | J70: 2325.88 | K70: -79.39770968 | L70: 5925.54
A71: 70 | D71: 80.7 | E71: 1.1379 | F71: 2023-01-01 | G71: 2023-03-11 | H71: 69 | I71: 31.63 | J71: 2325.88 | K71: -88.21767742 | L71: 6016.7
A72: 71 | D72: 80.7 | E72: 1.1379 | F72: 2023-01-01 | G72: 2023-03-12 | H72: 70 | I72: 31.63 | J72: 2325.88 | K72: -97.04764516 | L72: 6107.87
A73: 72 | D73: 80.7 | E73: 1.1379 | F73: 2023-01-01 | G73: 2023-03-13 | H73: 71 | I73: 31.63 | J73: 2325.88 | K73: -105.8676129 | L73: 6199.03
A74: 73 | D74: 80.7 | E74: 1.1379 | F74: 2023-01-01 | G74: 2023-03-14 | H74: 72 | I74: 31.63 | J74: 2325.88 | K74: -114.6875806 | L74: 6290.19
A75: 74 | D75: 80.7 | E75: 1.1379 | F75: 2023-01-01 | G75: 2023-03-15 | H75: 73 | I75: 31.63 | J75: 2325.88 | K75: -123.5075484 | L75: 6381.35
A76: 75 | D76: 80.7 | E76: 1.1379 | F76: 2023-01-01 | G76: 2023-03-16 | H76: 74 | I76: 31.63 | J76: 2325.88 | K76: -132.3275161 | L76: 6472.51
A77: 76 | D77: 80.7 | E77: 1.1379 | F77: 2023-01-01 | G77: 2023-03-17 | H77: 75 | I77: 31.63 | J77: 2325.88 | K77: -141.1574839 | L77: 6563.68
A78: 77 | D78: 80.7 | E78: 1.1379 | F78: 2023-01-01 | G78: 2023-03-18 | H78: 76 | I78: 31.63 | J78: 2325.88 | K78: =D78*I78*2+D78*I78/31*(H78-59)-L78 -> -149.9774516 | L78: 6654.84
A79: 78 | D79: 80.7 | E79: 1.1379 | F79: 2023-01-01 | G79: 2023-03-19 | H79: 77 | I79: 31.63 | J79: 2325.88 | K79: -158.7974194 | L79: 6746
A80: 79 | D80: 80.7 | E80: 1.1379 | F80: 2023-01-01 | G80: 2023-03-20 | H80: 78 | I80: 31.63 | J80: 2325.88 | K80: -167.6173871 | L80: 6837.16
A81: 80 | D81: 80.7 | E81: 1.1379 | F81: 2023-01-01 | G81: 2023-03-21 | H81: 79 | I81: 31.63 | J81: 2325.88 | K81: -176.4473548 | L81: 6928.33
A82: 81 | D82: 80.7 | E82: 1.1379 | F82: 2023-01-01 | G82: 2023-03-22 | H82: 80 | I82: 31.63 | J82: 2325.88 | K82: -185.2673226 | L82: 7019.49
A83: 82 | D83: 80.7 | E83: 1.1379 | F83: 2023-01-01 | G83: 2023-03-23 | H83: 81 | I83: 31.63 | J83: 2325.88 | K83: -194.0872903 | L83: 7110.65
A84: 83 | D84: 80.7 | E84: 1.1379 | F84: 2023-01-01 | G84: 2023-03-24 | H84: 82 | I84: 31.63 | J84: 2325.88 | K84: -202.9072581 | L84: 7201.81
A85: 84 | D85: 80.7 | E85: 1.1379 | F85: 2023-01-01 | G85: 2023-03-25 | H85: 83 | I85: 31.63 | J85: 2325.88 | K85: -211.7272258 | L85: 7292.97
A86: 85 | D86: 80.7 | E86: 1.1379 | F86: 2023-01-01 | G86: 2023-03-26 | H86: 84 | I86: 31.63 | J86: 2325.88 | K86: =D86*I86*2+D86*I86/31*(H86-59)-L86 -> -220.5571935 | L86: 7384.14
A87: 86 | D87: 80.7 | E87: 1.1379 | F87: 2023-01-01 | G87: 2023-03-27 | H87: 85 | I87: 31.63 | J87: 2325.88 | K87: -229.3771613 | L87: 7475.3
A88: 87 | D88: 80.7 | E88: 1.1379 | F88: 2023-01-01 | G88: 2023-03-28 | H88: 86 | I88: 31.63 | J88: 2325.88 | K88: -238.197129 | L88: 7566.46
A89: 88 | D89: 80.7 | E89: 1.1379 | F89: 2023-01-01 | G89: 2023-03-29 | H89: 87 | I89: 31.63 | J89: 2325.88 | K89: -247.0170968 | L89: 7657.62
A90: 89 | D90: 80.7 | E90: 1.1379 | F90: 2023-01-01 | G90: 2023-03-30 | H90: 88 | I90: 31.63 | J90: 2325.88 | K90: -255.8470645 | L90: 7748.79
A91: 90 | D91: 80.7 | E91: 1.1379 | F91: 2023-01-01 | G91: 2023-03-31 | H91: 89 | I91: 31.63 | J91: 2325.88 | K91: -264.6670323 | L91: 7839.95
A92: 91 | D92: 80.7 | E92: 1.1379 | F92: 2023-01-01 | G92: 2023-04-01 | H92: 90 | I92: 31.63 | J92: 2325.88 | K92: -273.487 | L92: 7931.11
A93: 1 | D93: 80.7 | E93: 1.1379 | F93: 2023-01-01 | G93: 2023-04-02 | H93: 91 | I93: 31.63 | J93: 2325.88 | K93: =D93*I93/30*H93-L93 -> -279.5623 | L93: 8022.27
A94: 2 | D94: 80.7 | E94: 1.1379 | F94: 2023-01-01 | G94: 2023-04-03 | H94: 92 | I94: 31.63 | J94: 2325.88 | K94: -285.6376 | L94: 8113.43
A95: 3 | D95: 80.7 | E95: 1.1379 | F95: 2023-01-01 | G95: 2023-04-04 | H95: 93 | I95: 31.63 | J95: 2325.88 | K95: -291.7229 | L95: 8204.6
A96: 4 | D96: 80.7 | E96: 1.1379 | F96: 2023-01-01 | G96: 2023-04-05 | H96: 94 | I96: 31.63 | J96: 2325.88 | K96: -297.7982 | L96: 8295.76
A97: 5 | D97: 80.7 | E97: 1.1379 | F97: 2023-01-01 | G97: 2023-04-06 | H97: 95 | I97: 31.63 | J97: 2325.88 | K97: -303.8735 | L97: 8386.92
A98: 6 | D98: 80.7 | E98: 1.1379 | F98: 2023-01-01 | G98: 2023-04-07 | H98: 96 | I98: 31.63 | J98: 2325.88 | K98: -309.9488 | L98: 8478.08
A99: 7 | D99: 80.7 | E99: 1.1379 | F99: 2023-01-01 | G99: 2023-04-08 | H99: 97 | I99: 31.63 | J99: 2325.88 | K99: -316.0241 | L99: 8569.24
A100: 8 | D100: 80.7 | E100: 1.1379 | F100: 2023-01-01 | G100: 2023-04-09 | H100: 98 | I100: 31.63 | J100: 2325.88 | K100: -322.1094 | L100: 8660.41
A101: 9 | D101: 80.7 | E101: 1.1379 | F101: 2023-01-01 | G101: 2023-04-10 | H101: 99 | I101: 31.63 | J101: 2325.88 | K101: -328.1847 | L101: 8751.57
A102: 10 | D102: 80.7 | E102: 1.1379 | F102: 2023-01-01 | G102: 2023-04-11 | H102: 100 | I102: 31.63 | J102: 2325.88 | K102: -334.26 | L102: 8842.73
A103: 11 | D103: 80.7 | E103: 1.1379 | F103: 2023-01-01 | G103: 2023-04-12 | H103: 101 | I103: 31.63 | J103: 2325.88 | K103: -340.3353 | L103: 8933.89
A104: 12 | D104: 80.7 | E104: 1.1379 | F104: 2023-01-01 | G104: 2023-04-13 | H104: 102 | I104: 31.63 | J104: 2325.88 | K104: -346.4206 | L104: 9025.06
A105: 13 | D105: 80.7 | E105: 1.1379 | F105: 2023-01-01 | G105: 2023-04-14 | H105: 103 | I105: 31.63 | J105: 2325.88 | K105: -352.4959 | L105: 9116.22
A106: 14 | D106: 80.7 | E106: 1.1379 | F106: 2023-01-01 | G106: 2023-04-15 | H106: 104 | I106: 31.63 | J106: 2325.88 | K106: -358.5712 | L106: 9207.38
A107: 15 | D107: 80.7 | E107: 1.1379 | F107: 2023-01-01 | G107: 2023-04-16 | H107: 105 | I107: 31.63 | J107: 2325.88 | K107: -364.6465 | L107: 9298.54
A108: 16 | D108: 80.7 | E108: 1.1379 | F108: 2023-01-01 | G108: 2023-04-17 | H108: 106 | I108: 31.63 | J108: 2325.88 | K108: -370.7218 | L108: 9389.7
A109: 17 | D109: 80.7 | E109: 1.1379 | F109: 2023-01-01 | G109: 2023-04-18 | H109: 107 | I109: 31.63 | J109: 2325.88 | K109: -376.8071 | L109: 9480.87
A110: 18 | D110: 80.7 | E110: 1.1379 | F110: 2023-01-01 | G110: 2023-04-19 | H110: 108 | I110: 31.63 | J110: 2325.88 | K110: -382.8824 | L110: 9572.03
A111: 19 | D111: 80.7 | E111: 1.1379 | F111: 2023-01-01 | G111: 2023-04-20 | H111: 109 | I111: 31.63 | J111: 2325.88 | K111: -388.9577 | L111: 9663.19
A112: 20 | D112: 80.7 | E112: 1.1379 | F112: 2023-01-01 | G112: 2023-04-21 | H112: 110 | I112: 31.63 | J112: 2325.88 | K112: -395.033 | L112: 9754.35
A113: 21 | D113: 80.7 | E113: 1.1379 | F113: 2023-01-01 | G113: 2023-04-22 | H113: 111 | I113: 31.63 | J113: 2325.88 | K113: -401.1183 | L113: 9845.52
A114: 22 | D114: 80.7 | E114: 1.1379 | F114: 2023-01-01 | G114: 2023-04-23 | H114: 112 | I114: 31.63 | J114: 2325.88 | K114: -407.1936 | L114: 9936.68
A115: 23 | D115: 80.7 | E115: 1.1379 | F115: 2023-01-01 | G115: 2023-04-24 | H115: 113 | I115: 31.63 | J115: 2325.88 | K115: -413.2689 | L115: 10027.84
A116: 24 | D116: 80.7 | E116: 1.1379 | F116: 2023-01-01 | G116: 2023-04-25 | H116: 114 | I116: 31.63 | J116: 2325.88 | K116: -419.3442 | L116: 10119
A117: 25 | D117: 80.7 | E117: 1.1379 | F117: 2023-01-01 | G117: 2023-04-26 | H117: 115 | I117: 31.63 | J117: 2325.88 | K117: -425.4195 | L117: 10210.16
A118: 26 | D118: 80.7 | E118: 1.1379 | F118: 2023-01-01 | G118: 2023-04-27 | H118: 116 | I118: 31.63 | J118: 2325.88 | K118: -431.5048 | L118: 10301.33
A119: 27 | D119: 80.7 | E119: 1.1379 | F119: 2023-01-01 | G119: 2023-04-28 | H119: 117 | I119: 31.63 | J119: 2325.88 | K119: -437.5801 | L119: 10392.49
A120: 28 | D120: 80.7 | E120: 1.1379 | F120: 2023-01-01 | G120: 2023-04-29 | H120: 118 | I120: 31.63 | J120: 2325.88 | K120: -443.6554 | L120: 10483.65
A121: 29 | D121: 80.7 | E121: 1.1379 | F121: 2023-01-01 | G121: 2023-04-30 | H121: 119 | I121: 31.63 | J121: 2325.88 | K121: -449.7307 | L121: 10574.81
A122: 30 | D122: 80.7 | E122: 1.1379 | F122: 2023-01-01 | G122: 2023-05-01 | H122: 120 | I122: 31.63 | J122: 2325.88 | K122: =D122*I122/30*H122-L122 -> -455.806 | L122: 10665.97
A123: 31 | D123: 80.7 | E123: 1.1379 | F123: 2023-01-01 | G123: 2023-05-02 | H123: 121 | I123: 31.63 | J123: 2325.88 | K123: =D123*I123+D123*I123/31*(H123-30)-L123 -> -711.6560645 | L123: 10757.14
A124: 32 | D124: 80.7 | E124: 1.1379 | F124: 2023-01-01 | G124: 2023-05-03 | H124: 122 | I124: 31.63 | J124: 2325.88 | K124: =D124*I124+D124*I124/31*(H124-30)-L124 -> -720.4760323 | L124: 10848.3
A125: 33 | D125: 80.7 | E125: 1.1379 | F125: 2023-01-01 | G125: 2023-05-04 | H125: 123 | I125: 31.63 | J125: 2325.88 | K125: =D125*I125+D125*I125/31*(H125-30)-L125 -> -729.296 | L125: 10939.46
A126: 34 | D126: 80.7 | E126: 1.1379 | F126: 2023-01-01 | G126: 2023-05-05 | H126: 124 | I126: 31.63 | J126: 2325.88 | K126: -738.1159677 | L126: 11030.62
A127: 35 | D127: 80.7 | E127: 1.1379 | F127: 2023-01-01 | G127: 2023-05-06 | H127: 125 | I127: 31.63 | J127: 2325.88 | K127: -746.9459355 | L127: 11121.79
A128: 36 | D128: 80.7 | E128: 1.1379 | F128: 2023-01-01 | G128: 2023-05-07 | H128: 126 | I128: 31.63 | J128: 2325.88 | K128: -755.7659032 | L128: 11212.95
A129: 37 | D129: 80.7 | E129: 1.1379 | F129: 2023-01-01 | G129: 2023-05-08 | H129: 127 | I129: 31.63 | J129: 2325.88 | K129: -764.585871 | L129: 11304.11
A130: 38 | D130: 80.7 | E130: 1.1379 | F130: 2023-01-01 | G130: 2023-05-09 | H130: 128 | I130: 31.63 | J130: 2325.88 | K130: -773.4058387 | L130: 11395.27
A131: 39 | D131: 80.7 | E131: 1.1379 | F131: 2023-01-01 | G131: 2023-05-10 | H131: 129 | I131: 31.63 | J131: 2325.88 | K131: -782.2258065 | L131: =NERASP(D131,F131,H131,I131) -> 11486.43
A132: 40 | D132: 80.7 | E132: 1.1379 | F132: 2023-01-01 | G132: 2023-05-11 | H132: 130 | I132: 31.63 | J132: 2325.88 | K132: -791.0557742 | L132: 11577.6
A133: 41 | D133: 80.7 | E133: 1.1379 | F133: 2023-01-01 | G133: 2023-05-12 | H133: 131 | I133: 31.63 | J133: 2325.88 | K133: -799.8757419 | L133: 11668.76
A134: 42 | D134: 80.7 | E134: 1.1379 | F134: 2023-01-01 | G134: 2023-05-13 | H134: 132 | I134: 31.63 | J134: 2325.88 | K134: -808.6957097 | L134: 11759.92
A135: 43 | D135: 80.7 | E135: 1.1379 | F135: 2023-01-01 | G135: 2023-05-14 | H135: 133 | I135: 31.63 | J135: 2325.88 | K135: -817.5156774 | L135: 11851.08
A136: 44 | D136: 80.7 | E136: 1.1379 | F136: 2023-01-01 | G136: 2023-05-15 | H136: 134 | I136: 31.63 | J136: 2325.88 | K136: -826.3456452 | L136: 11942.25
A137: 45 | D137: 80.7 | E137: 1.1379 | F137: 2023-01-01 | G137: 2023-05-16 | H137: 135 | I137: 31.63 | J137: 2325.88 | K137: -835.1656129 | L137: 12033.41
A138: 46 | D138: 80.7 | E138: 1.1379 | F138: 2023-01-01 | G138: 2023-05-17 | H138: 136 | I138: 31.63 | J138: 2325.88 | K138: -843.9855806 | L138: 12124.57
A139: 47 | D139: 80.7 | E139: 1.1379 | F139: 2023-01-01 | G139: 2023-05-18 | H139: 137 | I139: 31.63 | J139: 2325.88 | K139: -852.8055484 | L139: 12215.73
A140: 48 | D140: 80.7 | E140: 1.1379 | F140: 2023-01-01 | G140: 2023-05-19 | H140: 138 | I140: 31.63 | J140: 2325.88 | K140: -861.6255161 | L140: 12306.89
A141: 49 | D141: 80.7 | E141: 1.1379 | F141: 2023-01-01 | G141: 2023-05-20 | H141: 139 | I141: 31.63 | J141: 2325.88 | K141: -870.4554839 | L141: 12398.06
A142: 50 | D142: 80.7 | E142: 1.1379 | F142: 2023-01-01 | G142: 2023-05-21 | H142: 140 | I142: 31.63 | J142: 2325.88 | K142: -879.2754516 | L142: 12489.22
A143: 51 | D143: 80.7 | E143: 1.1379 | F143: 2023-01-01 | G143: 2023-05-22 | H143: 141 | I143: 31.63 | J143: 2325.88 | K143: -888.0954194 | L143: 12580.38
A144: 52 | D144: 80.7 | E144: 1.1379 | F144: 2023-01-01 | G144: 2023-05-23 | H144: 142 | I144: 31.63 | J144: 2325.88 | K144: -896.9153871 | L144: 12671.54
A145: 53 | D145: 80.7 | E145: 1.1379 | F145: 2023-01-01 | G145: 2023-05-24 | H145: 143 | I145: 31.63 | J145: 2325.88 | K145: -905.7353548 | L145: 12762.7
A146: 54 | D146: 80.7 | E146: 1.1379 | F146: 2023-01-01 | G146: 2023-05-25 | H146: 144 | I146: 31.63 | J146: 2325.88 | K146: -914.5653226 | L146: 12853.87
A147: 55 | D147: 80.7 | E147: 1.1379 | F147: 2023-01-01 | G147: 2023-05-26 | H147: 145 | I147: 31.63 | J147: 2325.88 | K147: -923.3852903 | L147: 12945.03
A148: 56 | D148: 80.7 | E148: 1.1379 | F148: 2023-01-01 | G148: 2023-05-27 | H148: 146 | I148: 31.63 | J148: 2325.88 | K148: -932.2052581 | L148: 13036.19
A149: 57 | D149: 80.7 | E149: 1.1379 | F149: 2023-01-01 | G149: 2023-05-28 | H149: 147 | I149: 31.63 | J149: 2325.88 | K149: -941.0252258 | L149: 13127.35
A150: 58 | D150: 80.7 | E150: 1.1379 | F150: 2023-01-01 | G150: 2023-05-29 | H150: 148 | I150: 31.63 | J150: 2325.88 | K150: -949.8551935 | L150: 13218.52
A151: 59 | D151: 80.7 | E151: 1.1379 | F151: 2023-01-01 | G151: 2023-05-30 | H151: 149 | I151: 31.63 | J151: 2325.88 | K151: -958.6751613 | L151: 13309.68
A152: 60 | D152: 80.7 | E152: 1.1379 | F152: 2023-01-01 | G152: 2023-05-31 | H152: 150 | I152: 31.63 | J152: 2325.88 | K152: -967.495129 | L152: 13400.84
A153: 61 | D153: 80.7 | E153: 1.1379 | F153: 2023-01-01 | G153: 2023-06-01 | H153: 151 | I153: 31.63 | J153: 2325.88 | K153: -976.3150968 | L153: 13492
A154: 62 | D154: 80.7 | E154: 1.1379 | F154: 2023-01-01 | G154: 2023-06-02 | H154: 152 | I154: 31.63 | J154: 2325.88 | K154: =D154*I154*2+D154*I154/30*(H154-61)-L154 -> -735.3703 | L154: 13583.16
A155: 63 | D155: 80.7 | E155: 1.1379 | F155: 2023-01-01 | G155: 2023-06-03 | H155: 153 | I155: 31.63 | J155: 2325.88 | K155: =D155*I155*2+D155*I155/30*(H155-61)-L155 -> -741.4556 | L155: 13674.33
A156: 64 | D156: 80.7 | E156: 1.1379 | F156: 2023-01-01 | G156: 2023-06-04 | H156: 154 | I156: 31.63 | J156: 2325.88 | K156: -747.5309 | L156: 13765.49
A157: 65 | D157: 80.7 | E157: 1.1379 | F157: 2023-01-01 | G157: 2023-06-05 | H157: 155 | I157: 31.63 | J157: 2325.88 | K157: -753.6062 | L157: 13856.65
A158: 66 | D158: 80.7 | E158: 1.1379 | F158: 2023-01-01 | G158: 2023-06-06 | H158: 156 | I158: 31.63 | J158: 2325.88 | K158: -759.6815 | L158: 13947.81
A159: 67 | D159: 80.7 | E159: 1.1379 | F159: 2023-01-01 | G159: 2023-06-07 | H159: 157 | I159: 31.63 | J159: 2325.88 | K159: -765.7668 | L159: 14038.98
A160: 68 | D160: 80.7 | E160: 1.1379 | F160: 2023-01-01 | G160: 2023-06-08 | H160: 158 | I160: 31.63 | J160: 2325.88 | K160: -771.8421 | L160: 14130.14
A161: 69 | D161: 80.7 | E161: 1.1379 | F161: 2023-01-01 | G161: 2023-06-09 | H161: 159 | I161: 31.63 | J161: 2325.88 | K161: -777.9174 | L161: 14221.3
A162: 70 | D162: 80.7 | E162: 1.1379 | F162: 2023-01-01 | G162: 2023-06-10 | H162: 160 | I162: 31.63 | J162: 2325.88 | K162: -783.9927 | L162: 14312.46
A163: 71 | D163: 80.7 | E163: 1.1379 | F163: 2023-01-01 | G163: 2023-06-11 | H163: 161 | I163: 31.63 | J163: 2325.88 | K163: -790.068 | L163: 14403.62
A164: 72 | D164: 80.7 | E164: 1.1379 | F164: 2023-01-01 | G164: 2023-06-12 | H164: 162 | I164: 31.63 | J164: 2325.88 | K164: -796.1533 | L164: 14494.79
A165: 73 | D165: 80.7 | E165: 1.1379 | F165: 2023-01-01 | G165: 2023-06-13 | H165: 163 | I165: 31.63 | J165: 2325.88 | K165: -802.2286 | L165: 14585.95
A166: 74 | D166: 80.7 | E166: 1.1379 | F166: 2023-01-01 | G166: 2023-06-14 | H166: 164 | I166: 31.63 | J166: 2325.88 | K166: -808.3039 | L166: 14677.11
A167: 75 | D167: 80.7 | E167: 1.1379 | F167: 2023-01-01 | G167: 2023-06-15 | H167: 165 | I167: 31.63 | J167: 2325.88 | K167: -814.3792 | L167: 14768.27
A168: 76 | D168: 80.7 | E168: 1.1379 | F168: 2023-01-01 | G168: 2023-06-16 | H168: 166 | I168: 31.63 | J168: 2325.88 | K168: -820.4645 | L168: 14859.44
A169: 77 | D169: 80.7 | E169: 1.1379 | F169: 2023-01-01 | G169: 2023-06-17 | H169: 167 | I169: 31.63 | J169: 2325.88 | K169: -826.5398 | L169: 14950.6
A170: 78 | D170: 80.7 | E170: 1.1379 | F170: 2023-01-01 | G170: 2023-06-18 | H170: 168 | I170: 31.63 | J170: 2325.88 | K170: -832.6151 | L170: 15041.76
A171: 79 | D171: 80.7 | E171: 1.1379 | F171: 2023-01-01 | G171: 2023-06-19 | H171: 169 | I171: 31.63 | J171: 2325.88 | K171: -838.6904 | L171: 15132.92
A172: 80 | D172: 80.7 | E172: 1.1379 | F172: 2023-01-01 | G172: 2023-06-20 | H172: 170 | I172: 31.63 | J172: 2325.88 | K172: -844.7657 | L172: 15224.08
A173: 81 | D173: 80.7 | E173: 1.1379 | F173: 2023-01-01 | G173: 2023-06-21 | H173: 171 | I173: 31.63 | J173: 2325.88 | K173: -850.851 | L173: 15315.25
A174: 82 | D174: 80.7 | E174: 1.1379 | F174: 2023-01-01 | G174: 2023-06-22 | H174: 172 | I174: 31.63 | J174: 2325.88 | K174: -856.9263 | L174: 15406.41
A175: 83 | D175: 80.7 | E175: 1.1379 | F175: 2023-01-01 | G175: 2023-06-23 | H175: 173 | I175: 31.63 | J175: 2325.88 | K175: -863.0016 | L175: 15497.57
A176: 84 | D176: 80.7 | E176: 1.1379 | F176: 2023-01-01 | G176: 2023-06-24 | H176: 174 | I176: 31.63 | J176: 2325.88 | K176: -869.0769 | L176: 15588.73
A177: 85 | D177: 80.7 | E177: 1.1379 | F177: 2023-01-01 | G177: 2023-06-25 | H177: 175 | I177: 31.63 | J177: 2325.88 | K177: -875.1522 | L177: 15679.89
A178: 86 | D178: 80.7 | E178: 1.1379 | F178: 2023-01-01 | G178: 2023-06-26 | H178: 176 | I178: 31.63 | J178: 2325.88 | K178: -881.2375 | L178: 15771.06
A179: 87 | D179: 80.7 | E179: 1.1379 | F179: 2023-01-01 | G179: 2023-06-27 | H179: 177 | I179: 31.63 | J179: 2325.88 | K179: -887.3128 | L179: 15862.22
A180: 88 | D180: 80.7 | E180: 1.1379 | F180: 2023-01-01 | G180: 2023-06-28 | H180: 178 | I180: 31.63 | J180: 2325.88 | K180: -893.3881 | L180: 15953.38
A181: 89 | D181: 80.7 | E181: 1.1379 | F181: 2023-01-01 | G181: 2023-06-29 | H181: 179 | I181: 31.63 | J181: 2325.88 | K181: -899.4634 | L181: 16044.54
A182: 90 | D182: 80.7 | E182: 1.1379 | F182: 2023-01-01 | G182: 2023-06-30 | H182: 180 | I182: 31.63 | J182: 2325.88 | K182: -905.5487 | L182: 16135.71
A183: 91 | D183: 80.7 | E183: 1.1379 | F183: 2023-01-01 | G183: 2023-07-01 | H183: 181 | I183: 31.63 | J183: 2325.88 | K183: -911.624 | L183: 16226.87
A184: 1 | D184: 80.7 | E184: 1.1379 | F184: 2023-01-01 | G184: 2023-07-01 | H184: 181 | I184: 31.63 | J184: 2325.88 | K184: =D184*I184/30*H184-L184 -> -826.5393 | L184: 16226.87
A185: 2 | D185: 80.7 | E185: 1.1379 | F185: 2023-01-01 | G185: 2023-07-02 | H185: 182 | I185: 31.63 | J185: 2325.88 | K185: =D185*I185/31*H185-L185 -> -1332.144129 | L185: 16318.03
D186: 80.7 | E186: 1.1379 | F186: 2023-01-01 | G186: 2023-07-03 | H186: 183 | I186: 31.63 | J186: 2325.88 | K186: =D186*I186/31*H186-L186 -> -1340.964097 | L186: 16409.19
D187: 80.7 | E187: 1.1379 | F187: 2023-01-01 | G187: 2023-07-04 | H187: 184 | I187: 31.63 | J187: 2325.88 | K187: -1349.784065 | L187: 16500.35
D188: 80.7 | E188: 1.1379 | F188: 2023-01-01 | G188: 2023-07-05 | H188: 185 | I188: 31.63 | J188: 2325.88 | K188: -1358.614032 | L188: 16591.52
D189: 80.7 | E189: 1.1379 | F189: 2023-01-01 | G189: 2023-07-06 | H189: 186 | I189: 31.63 | J189: 2325.88 | K189: -1367.434 | L189: 16682.68
D190: 80.7 | E190: 1.1379 | F190: 2023-01-01 | G190: 2023-07-07 | H190: 187 | I190: 31.63 | J190: 2325.88 | K190: -1376.253968 | L190: 16773.84
D191: 80.7 | E191: 1.1379 | F191: 2023-01-01 | G191: 2023-07-08 | H191: 188 | I191: 31.63 | J191: 2325.88 | K191: -1385.073935 | L191: 16865
D192: 80.7 | E192: 1.1379 | F192: 2023-01-01 | G192: 2023-07-09 | H192: 189 | I192: 31.63 | J192: 2325.88 | K192: -1393.903903 | L192: 16956.17
D193: 80.7 | E193: 1.1379 | F193: 2023-01-01 | G193: 2023-07-10 | H193: 190 | I193: 31.63 | J193: 2325.88 | K193: -1402.723871 | L193: 17047.33
D194: 80.7 | E194: 1.1379 | F194: 2023-01-01 | G194: 2023-07-11 | H194: 191 | I194: 31.63 | J194: 2325.88 | K194: -1411.543839 | L194: 17138.49
D195: 80.7 | E195: 1.1379 | F195: 2023-01-01 | G195: 2023-07-12 | H195: 192 | I195: 31.63 | J195: 2325.88 | K195: -1420.363806 | L195: =NERASP(D195,F195,H195,I195) -> 17229.65
D196: 80.7 | E196: 1.1379 | F196: 2023-01-01 | G196: 2023-07-13 | H196: 193 | I196: 31.63 | J196: 2325.88 | K196: -1429.183774 | L196: 17320.81
D197: 80.7 | E197: 1.1379 | F197: 2023-01-01 | G197: 2023-07-14 | H197: 194 | I197: 31.63 | J197: 2325.88 | K197: -1438.013742 | L197: 17411.98
D198: 80.7 | E198: 1.1379 | F198: 2023-01-01 | G198: 2023-07-15 | H198: 195 | I198: 31.63 | J198: 2325.88 | K198: -1446.83371 | L198: 17503.14
D199: 80.7 | E199: 1.1379 | F199: 2023-01-01 | G199: 2023-07-16 | H199: 196 | I199: 31.63 | J199: 2325.88 | K199: -1455.653677 | L199: 17594.3
D200: 80.7 | E200: 1.1379 | F200: 2023-01-01 | G200: 2023-07-17 | H200: 197 | I200: 31.63 | J200: 2325.88 | K200: -1464.473645 | L200: 17685.46
... 168 more rows
